[Event "2026 Biel Blitz Open"]
[Site "Biel, CH"]
[Date "2026.07.19"]
[Round "4"]
[White "Gireada, Daniel"]
[Black "Coban, Ege"]
[Result "0-1"]
[Board "24"]
[TimeControl "180+2"]
[WhiteFideId "1206451"]
[BlackFideId "26320304"]
[WhiteElo "2148"]
[BlackElo "1936"]
[WhiteClock "0:00:13"]
[BlackClock "0:00:16"]
[Variant "Standard"]
[EndDate "2026.07.19"]
[EndTime "12:57:13"]

1. d4 {[%clk 0:03:03]}  Nf6 {[%clk 0:03:03]} 2. c4 {[%clk 0:03:04]}  c5 {[%clk 0:03:04]} 3. d5 {[%clk 0:03:05]}  b5 {[%clk 0:03:06]}
4. cxb5 {[%clk 0:03:06]}  a6 {[%clk 0:03:08]} 5. Nc3 {[%clk 0:03:00]}  g6 {[%clk 0:03:08]} 6. e4 {[%clk 0:02:54]}  d6 {[%clk 0:03:10]}
7. h3 {[%clk 0:02:50]}  Bg7 {[%clk 0:03:11]} 8. Nf3 {[%clk 0:02:45]}  O-O {[%clk 0:03:11]} 9. a4 {[%clk 0:02:41]}  Nbd7 {[%clk 0:03:05]}
10. Bd3 {[%clk 0:02:36]}  axb5 {[%clk 0:03:06]} 11. Nxb5 {[%clk 0:02:14]}  c4 {[%clk 0:02:58]} 12. Bc2 {[%clk 0:02:08]}  Ba6 {[%clk 0:02:59]}
13. Nc3 {[%clk 0:02:03]}  Nc5 {[%clk 0:03:00]} 14. Be3 {[%clk 0:02:03]}  Nd3+ {[%clk 0:02:52]} 15. Bxd3 {[%clk 0:02:03]}  cxd3 {[%clk 0:02:53]}
16. Qd2 {[%clk 0:01:56]}  Rb8 {[%clk 0:02:50]} 17. O-O {[%clk 0:01:56]}  Qa5 {[%clk 0:02:45]} 18. Rfc1 {[%clk 0:01:46]}  Rb3 {[%clk 0:02:42]}
19. Ne1 {[%clk 0:01:42]}  Rfb8 {[%clk 0:02:12]} 20. Nxd3 {[%clk 0:01:39]}  Nd7 {[%clk 0:02:09]} 21. Nb5 {[%clk 0:01:30]}  Qxd2 {[%clk 0:01:57]}
22. Bxd2 {[%clk 0:01:31]}  Rxd3 {[%clk 0:01:58]} 23. Bc3 {[%clk 0:01:15]}  Bxb5 {[%clk 0:01:49]} 24. axb5 {[%clk 0:01:12]}  Bxc3 {[%clk 0:01:47]}
25. bxc3 {[%clk 0:01:12]}  Rxb5 {[%clk 0:01:38]} 26. Ra7 {[%clk 0:01:05]}  Ne5 {[%clk 0:01:39]} 27. Rxe7 {[%clk 0:01:06]}  Rc5 {[%clk 0:01:40]}
28. Ra1 {[%clk 0:01:01]}  Rdxc3 {[%clk 0:01:33]} 29. Ra8+ {[%clk 0:00:56]}  Kg7 {[%clk 0:01:34]} 30. f4 {[%clk 0:00:05]}  Nd3 {[%clk 0:00:50]}
31. Raa7 {[%clk 0:00:54]}  Rc1+ {[%clk 0:00:25]} 32. Kh2 {[%clk 0:00:54]}  Rc8 {[%clk 0:00:22]} 33. Rxf7+ {[%clk 0:00:53]}  Kg8 {[%clk 0:00:23]}
34. Rg7+ {[%clk 0:00:49]}  Kf8 {[%clk 0:00:24]} 35. Rxh7 {[%clk 0:00:50]}  Kg8 {[%clk 0:00:26]} 36. Rhg7+ {[%clk 0:00:47]}  Kh8 {[%clk 0:00:24]}
37. Rh7+ {[%clk 0:00:46]}  Kg8 {[%clk 0:00:26]} 38. Rag7+ {[%clk 0:00:41]}  Kf8 {[%clk 0:00:27]} 39. Rxg6 {[%clk 0:00:42]}  Nxf4 {[%clk 0:00:23]}
40. Rf6+ {[%clk 0:00:42]}  Kg8 {[%clk 0:00:25]} 41. Rh4 {[%clk 0:00:38]}  Nd3 {[%clk 0:00:19]} 42. Rg4+ {[%clk 0:00:36]}  Kh7 {[%clk 0:00:20]}
43. Rxd6 {[%clk 0:00:37]}  Ne5 {[%clk 0:00:16]} 44. Rg5 {[%clk 0:00:33]}  Nf7 {[%clk 0:00:14]} 45. Rd7 {[%clk 0:00:34]}  Kh6 {[%clk 0:00:15]}
46. Rf5 {[%clk 0:00:35]}  Nh8 {[%clk 0:00:13]} 47. Rd6+ {[%clk 0:00:35]}  Ng6 {[%clk 0:00:14]} 48. Rff6 {[%clk 0:00:36]}  Rg8 {[%clk 0:00:16]}
49. e5 {[%clk 0:00:28]}  Re1 {[%clk 0:00:17]} 50. e6 {[%clk 0:00:28]}  Kg5 {[%clk 0:00:18]} 51. Rf3 {[%clk 0:00:27]}  Kh5 {[%clk 0:00:12]}
52. Rg3 {[%clk 0:00:25]}  Rf8 {[%clk 0:00:11]} 53. Rf3 {[%clk 0:00:25]}  Nf4 {[%clk 0:00:10]} 54. e7 {[%clk 0:00:23]}  Rxe7 {[%clk 0:00:10]}
55. g4+ {[%clk 0:00:18]}  Kg5 {[%clk 0:00:11]} 56. Re6 {[%clk 0:00:17]}  Nxe6 {[%clk 0:00:08]} 57. Re3 {[%clk 0:00:13]}  Rfe8 {[%clk 0:00:09]}
58. dxe6 {[%clk 0:00:14]}  Rxe6 {[%clk 0:00:09]} 59. Rf3 {[%clk 0:00:11]}  Re2+ {[%clk 0:00:11]} 60. Kg1 {[%clk 0:00:12]}  Re1+ {[%clk 0:00:12]}
61. Kg2 {[%clk 0:00:11]}  R8e2+ {[%clk 0:00:13]} 62. Kg3 {[%clk 0:00:12]}  Re3 {[%clk 0:00:15]} 63. Kf2 {[%clk 0:00:12]}  Rxf3+ {[%clk 0:00:16]}
64. Kxf3 {[%clk 0:00:13]}  Ra1 {[%clk 0:00:16]} 0-1

[Event "2026 Biel Blitz Open"]
[Site "Biel, CH"]
[Date "2026.07.19"]
[Round "4"]
[White "Jehnichen, Kai"]
[Black "Matsumura, Cocoro"]
[Result "0-1"]
[Board "25"]
[TimeControl "180+2"]
[WhiteFideId "24684333"]
[BlackFideId "36087114"]
[WhiteElo "1952"]
[BlackElo "2131"]
[BlackTitle "CM"]
[WhiteClock "0:00:55"]
[BlackClock "0:00:57"]
[Variant "Standard"]
[EndDate "2026.07.19"]
[EndTime "12:55:53"]

1. e4 {[%clk 0:03:02]}  c5 {[%clk 0:03:04]} 2. Nf3 {[%clk 0:03:02]}  d6 {[%clk 0:03:06]} 3. d4 {[%clk 0:03:04]}  cxd4 {[%clk 0:03:07]}
4. Nxd4 {[%clk 0:03:05]}  Nf6 {[%clk 0:03:08]} 5. Nc3 {[%clk 0:03:05]}  a6 {[%clk 0:03:10]} 6. Bc4 {[%clk 0:03:06]}  e6 {[%clk 0:03:10]}
7. O-O {[%clk 0:03:06]}  Nbd7 {[%clk 0:03:10]} 8. a4 {[%clk 0:03:05]}  Qc7 {[%clk 0:03:10]} 9. Bb3 {[%clk 0:03:06]}  Nc5 {[%clk 0:03:11]}
10. Qe2 {[%clk 0:03:03]}  Be7 {[%clk 0:03:08]} 11. a5 {[%clk 0:02:52]}  O-O {[%clk 0:03:07]} 12. Rd1 {[%clk 0:02:29]}  Bd7 {[%clk 0:03:07]}
13. Bg5 {[%clk 0:02:30]}  Rac8 {[%clk 0:02:55]} 14. Qf3 {[%clk 0:02:27]}  h6 {[%clk 0:02:53]} 15. Bh4 {[%clk 0:02:23]}  Bc6 {[%clk 0:02:45]}
16. Re1 {[%clk 0:02:20]}  Rfd8 {[%clk 0:02:34]} 17. Bg3 {[%clk 0:02:15]}  Qd7 {[%clk 0:02:15]} 18. Nxc6 {[%clk 0:02:13]}  bxc6 {[%clk 0:02:09]}
19. Ba2 {[%clk 0:02:09]}  Qb7 {[%clk 0:02:07]} 20. e5 {[%clk 0:02:06]}  Nd5 {[%clk 0:01:58]} 21. exd6 {[%clk 0:02:02]}  Bxd6 {[%clk 0:01:29]}
22. Bh4 {[%clk 0:01:42]}  Re8 {[%clk 0:01:49]} 23. Rab1 {[%clk 0:01:28]}  Be7 {[%clk 0:01:45]} 24. Bg3 {[%clk 0:01:27]}  Bf6 {[%clk 0:01:46]}
25. Bd6 {[%clk 0:01:21]}  Nd7 {[%clk 0:01:22]} 26. Ne4 {[%clk 0:01:22]}  Be7 {[%clk 0:01:19]} 27. c4 {[%clk 0:01:21]}  N5f6 {[%clk 0:01:17]}
28. Bxe7 {[%clk 0:01:20]}  Nxe4 {[%clk 0:01:14]} 29. Qxe4 {[%clk 0:01:17]}  Rxe7 {[%clk 0:01:14]} 30. b4 {[%clk 0:01:14]}  Nf6 {[%clk 0:01:15]}
31. Qc2 {[%clk 0:01:13]}  Rd7 {[%clk 0:01:15]} 32. Rb3 {[%clk 0:01:09]}  Rcd8 {[%clk 0:01:14]} 33. Bb1 {[%clk 0:01:10]}  Rd2 {[%clk 0:01:10]}
34. Qc1 {[%clk 0:01:08]}  Qa7 {[%clk 0:01:08]} 35. c5 {[%clk 0:01:07]}  Qd7 {[%clk 0:01:07]} 36. Bc2 {[%clk 0:01:06]}  Qd4 {[%clk 0:01:05]}
37. Rf3 {[%clk 0:01:02]}  Qxb4 {[%clk 0:01:03]} 38. h3 {[%clk 0:01:00]}  Kf8 {[%clk 0:00:58]} 39. Kh1 {[%clk 0:00:55]}  Qxc5 {[%clk 0:00:57]} 0-1

[Event "2026 Biel Blitz Open"]
[Site "Biel, CH"]
[Date "2026.07.19"]
[Round "4"]
[White "Hakimifard, Ghazal"]
[Black "Wilhelm, Serge"]
[Result "1-0"]
[Board "26"]
[TimeControl "180+2"]
[WhiteFideId "12506540"]
[BlackFideId "1305808"]
[WhiteElo "2130"]
[BlackElo "1923"]
[WhiteTitle "WGM"]
[WhiteClock "0:00:48"]
[BlackClock "0:01:11"]
[Variant "Standard"]
[EndDate "2026.07.19"]
[EndTime "12:46:23"]

1. e4 {[%clk 0:03:03]}  c6 {[%clk 0:03:04]} 2. d4 {[%clk 0:03:04]}  d5 {[%clk 0:03:05]} 3. Nd2 {[%clk 0:03:05]}  dxe4 {[%clk 0:03:05]}
4. Nxe4 {[%clk 0:03:06]}  Nf6 {[%clk 0:03:07]} 5. Qd3 {[%clk 0:03:00]}  Nxe4 {[%clk 0:03:02]} 6. Qxe4 {[%clk 0:03:01]}  Qd5 {[%clk 0:03:02]}
7. Qf4 {[%clk 0:03:01]}  Qf5 {[%clk 0:03:02]} 8. Qd2 {[%clk 0:03:00]}  g6 {[%clk 0:02:49]} 9. Nf3 {[%clk 0:02:51]}  Bg7 {[%clk 0:02:46]}
10. Bd3 {[%clk 0:02:50]}  Qg4 {[%clk 0:02:40]} 11. O-O {[%clk 0:02:48]}  O-O {[%clk 0:02:36]} 12. c3 {[%clk 0:02:49]}  Bf5 {[%clk 0:02:27]}
13. Be2 {[%clk 0:02:30]}  Qe4 {[%clk 0:02:23]} 14. Re1 {[%clk 0:02:30]}  Qd5 {[%clk 0:02:20]} 15. h3 {[%clk 0:02:18]}  Nd7 {[%clk 0:02:12]}
16. b3 {[%clk 0:01:45]}  Rad8 {[%clk 0:01:53]} 17. Ba3 {[%clk 0:01:33]}  Rfe8 {[%clk 0:01:47]} 18. Bc4 {[%clk 0:01:34]}  Qa5 {[%clk 0:01:42]}
19. Bxe7 {[%clk 0:01:32]}  Rc8 {[%clk 0:01:33]} 20. Ng5 {[%clk 0:01:24]}  Be6 {[%clk 0:01:23]} 21. Rxe6 {[%clk 0:01:04]}  fxe6 {[%clk 0:01:19]}
22. Bxe6+ {[%clk 0:01:05]}  Kh8 {[%clk 0:01:17]} 23. Nf7+ {[%clk 0:00:45]}  Kg8 {[%clk 0:01:17]} 24. Nd6+ {[%clk 0:00:46]}  Kh8 {[%clk 0:01:15]}
25. Nxc8 {[%clk 0:00:47]}  Rxc8 {[%clk 0:01:10]} 26. Bxd7 {[%clk 0:00:47]}  Rc7 {[%clk 0:01:11]} 27. Bd8 {[%clk 0:00:48]} 1-0

[Event "2026 Biel Blitz Open"]
[Site "Biel, CH"]
[Date "2026.07.19"]
[Round "4"]
[White "Jud, Marc"]
[Black "Erne, Raphael"]
[Result "0-1"]
[Board "27"]
[TimeControl "180+2"]
[WhiteFideId "1309099"]
[BlackFideId "1341928"]
[WhiteElo "1946"]
[BlackElo "2128"]
[WhiteClock "0:00:26"]
[BlackClock "0:00:13"]
[Variant "Standard"]
[EndDate "2026.07.19"]
[EndTime "12:54:32"]

1. d4 {[%clk 0:03:04]}  d5 {[%clk 0:03:03]} 2. Nf3 {[%clk 0:03:05]}  Nf6 {[%clk 0:03:04]} 3. e3 {[%clk 0:03:06]}  Bg4 {[%clk 0:03:05]}
4. Be2 {[%clk 0:03:07]}  e6 {[%clk 0:03:06]} 5. O-O {[%clk 0:03:06]}  Be7 {[%clk 0:03:07]} 6. c4 {[%clk 0:03:08]}  c6 {[%clk 0:03:08]}
7. b3 {[%clk 0:03:06]}  O-O {[%clk 0:03:05]} 8. Bb2 {[%clk 0:03:10]}  Nbd7 {[%clk 0:03:06]} 9. Nbd2 {[%clk 0:03:11]}  a5 {[%clk 0:03:05]}
10. Ne5 {[%clk 0:03:12]}  Bxe2 {[%clk 0:03:03]} 11. Qxe2 {[%clk 0:03:13]}  Nxe5 {[%clk 0:03:01]} 12. dxe5 {[%clk 0:03:13]}  Nd7 {[%clk 0:03:02]}
13. cxd5 {[%clk 0:03:11]}  cxd5 {[%clk 0:03:02]} 14. Rac1 {[%clk 0:03:06]}  Qb6 {[%clk 0:02:51]} 15. Rc2 {[%clk 0:02:54]}  f6 {[%clk 0:02:35]}
16. exf6 {[%clk 0:02:44]}  Nxf6 {[%clk 0:02:26]} 17. Rfc1 {[%clk 0:02:43]}  Bd6 {[%clk 0:02:26]} 18. h3 {[%clk 0:02:41]}  Rae8 {[%clk 0:02:03]}
19. Bd4 {[%clk 0:02:27]}  Qd8 {[%clk 0:02:04]} 20. f4 {[%clk 0:02:12]}  e5 {[%clk 0:01:57]} 21. fxe5 {[%clk 0:02:13]}  Bxe5 {[%clk 0:01:59]}
22. Qb5 {[%clk 0:02:03]}  Qe7 {[%clk 0:01:43]} 23. Bxe5 {[%clk 0:01:51]}  Qxe5 {[%clk 0:01:44]} 24. Nf1 {[%clk 0:01:52]}  Ne4 {[%clk 0:00:48]}
25. Qxb7 {[%clk 0:01:40]}  d4 {[%clk 0:00:42]} 26. Qc7 {[%clk 0:01:10]}  Qf6 {[%clk 0:00:32]} 27. Qc4+ {[%clk 0:01:05]}  Kh8 {[%clk 0:00:30]}
28. Qxd4 {[%clk 0:01:01]}  Qg6 {[%clk 0:00:25]} 29. Qd3 {[%clk 0:00:34]}  Qf5 {[%clk 0:00:14]} 30. Re2 {[%clk 0:00:28]}  Qg5 {[%clk 0:00:11]}
31. Qd4 {[%clk 0:00:22]}  Qg6 {[%clk 0:00:07]} 32. Qd3 {[%clk 0:00:23]}  Qg5 {[%clk 0:00:08]} 33. Qd4 {[%clk 0:00:23]}  Qh5 {[%clk 0:00:07]}
34. Qd3 {[%clk 0:00:20]}  Ng5 {[%clk 0:00:08]} 35. Ng3 {[%clk 0:00:18]}  Qh4 {[%clk 0:00:07]} 36. e4 {[%clk 0:00:17]}  Ne6 {[%clk 0:00:06]}
37. Rce1 {[%clk 0:00:13]}  Nf4 {[%clk 0:00:08]} 38. Qe3 {[%clk 0:00:10]}  Nxe2+ {[%clk 0:00:05]} 39. Qxe2 {[%clk 0:00:09]}  Qxg3 {[%clk 0:00:06]}
40. e5 {[%clk 0:00:09]}  Qg6 {[%clk 0:00:05]} 41. e6 {[%clk 0:00:10]}  Re7 {[%clk 0:00:06]} 42. Qc4 {[%clk 0:00:09]}  Rfe8 {[%clk 0:00:07]}
43. Qb5 {[%clk 0:00:05]}  Rxe6 {[%clk 0:00:07]} 44. Rxe6 {[%clk 0:00:04]}  Qxe6 {[%clk 0:00:08]} 45. Qxa5 {[%clk 0:00:05]}  Qe1+ {[%clk 0:00:10]}
46. Qxe1 {[%clk 0:00:06]}  Rxe1+ {[%clk 0:00:11]} 47. Kf2 {[%clk 0:00:07]}  Ra1 {[%clk 0:00:12]} 48. Ke3 {[%clk 0:00:07]}  Rxa2 {[%clk 0:00:13]}
49. Kd4 {[%clk 0:00:09]}  Rxg2 {[%clk 0:00:14]} 50. Kc5 {[%clk 0:00:10]}  Rg3 {[%clk 0:00:15]} 51. b4 {[%clk 0:00:12]}  Rxh3 {[%clk 0:00:16]}
52. b5 {[%clk 0:00:13]}  g5 {[%clk 0:00:16]} 53. b6 {[%clk 0:00:15]}  Rb3 {[%clk 0:00:18]} 54. Kc6 {[%clk 0:00:16]}  g4 {[%clk 0:00:19]}
55. Kc7 {[%clk 0:00:17]}  g3 {[%clk 0:00:20]} 56. b7 {[%clk 0:00:19]}  g2 {[%clk 0:00:21]} 57. b8=Q+ {[%clk 0:00:18]}  Rxb8 {[%clk 0:00:22]}
58. Kxb8 {[%clk 0:00:19]}  g1=Q {[%clk 0:00:21]} 59. Kc7 {[%clk 0:00:20]}  Qc5+ {[%clk 0:00:22]} 60. Kd7 {[%clk 0:00:21]}  Kg7 {[%clk 0:00:21]}
61. Ke6 {[%clk 0:00:22]}  Kg6 {[%clk 0:00:21]} 62. Kd7 {[%clk 0:00:23]}  Qb6 {[%clk 0:00:22]} 63. Ke7 {[%clk 0:00:24]}  Kf5 {[%clk 0:00:20]}
64. Kd7 {[%clk 0:00:24]}  h5 {[%clk 0:00:18]} 65. Ke7 {[%clk 0:00:25]}  Qe6+ {[%clk 0:00:19]} 66. Kd8 {[%clk 0:00:26]}  Qf7 {[%clk 0:00:21]}
67. Kc8 {[%clk 0:00:25]}  Ke6 {[%clk 0:00:22]} 68. Kb8 {[%clk 0:00:26]}  Kd6 {[%clk 0:00:13]} 0-1

[Event "2026 Biel Blitz Open"]
[Site "Biel, CH"]
[Date "2026.07.19"]
[Round "4"]
[White "Waelti, Thomas"]
[Black "Habibi, Ali"]
[Result "0-1"]
[Board "29"]
[TimeControl "180+2"]
[WhiteFideId "1303996"]
[BlackFideId "4604393"]
[WhiteElo "1940"]
[BlackElo "2116"]
[BlackTitle "IM"]
[WhiteClock "0:00:48"]
[BlackClock "0:02:05"]
[Variant "Standard"]
[EndDate "2026.07.19"]
[EndTime "12:45:23"]

1. d4 {[%clk 0:03:02]}  Nf6 {[%clk 0:03:02]} 2. c4 {[%clk 0:03:06]}  c5 {[%clk 0:03:03]} 3. d5 {[%clk 0:03:04]}  g6 {[%clk 0:03:03]}
4. Nc3 {[%clk 0:03:05]}  Bg7 {[%clk 0:03:04]} 5. e4 {[%clk 0:03:00]}  d6 {[%clk 0:03:06]} 6. Be2 {[%clk 0:02:56]}  O-O {[%clk 0:03:05]}
7. g4 {[%clk 0:02:53]}  a6 {[%clk 0:02:57]} 8. g5 {[%clk 0:02:53]}  Nfd7 {[%clk 0:02:57]} 9. h4 {[%clk 0:02:51]}  b5 {[%clk 0:02:55]}
10. h5 {[%clk 0:02:35]}  Re8 {[%clk 0:02:55]} 11. hxg6 {[%clk 0:02:36]}  fxg6 {[%clk 0:02:56]} 12. cxb5 {[%clk 0:02:22]}  axb5 {[%clk 0:02:56]}
13. Be3 {[%clk 0:01:37]}  b4 {[%clk 0:02:54]} 14. Nb5 {[%clk 0:01:22]}  Nf8 {[%clk 0:02:54]} 15. Nh3 {[%clk 0:01:08]}  Bxb2 {[%clk 0:02:41]}
16. Rb1 {[%clk 0:01:05]}  Bg7 {[%clk 0:02:41]} 17. Nf4 {[%clk 0:01:01]}  Rxa2 {[%clk 0:02:38]} 18. Bg4 {[%clk 0:00:48]}  Qa5 {[%clk 0:02:05]} 0-1

[Event "2026 Biel Blitz Open"]
[Site "Biel, CH"]
[Date "2026.07.19"]
[Round "4"]
[White "Harish, Neeraj"]
[Black "Ragavan, Samarth Rajesh"]
[Result "1/2-1/2"]
[Board "30"]
[TimeControl "180+2"]
[WhiteFideId "30958130"]
[BlackFideId "39918106"]
[WhiteElo "1920"]
[BlackElo "2101"]
[WhiteTitle "CM"]
[WhiteClock "0:00:20"]
[BlackClock "0:00:22"]
[Variant "Standard"]
[EndDate "2026.07.19"]
[EndTime "12:55:23"]

1. e4 {[%clk 0:03:03]}  c6 {[%clk 0:03:04]} 2. d4 {[%clk 0:03:04]}  d5 {[%clk 0:03:06]} 3. exd5 {[%clk 0:03:04]}  cxd5 {[%clk 0:03:07]}
4. c3 {[%clk 0:03:05]}  Nf6 {[%clk 0:03:08]} 5. Bd3 {[%clk 0:03:05]}  Nc6 {[%clk 0:03:08]} 6. h3 {[%clk 0:03:06]}  e5 {[%clk 0:03:08]}
7. dxe5 {[%clk 0:03:07]}  Nxe5 {[%clk 0:03:09]} 8. Nf3 {[%clk 0:03:07]}  Nxd3+ {[%clk 0:03:09]} 9. Qxd3 {[%clk 0:03:08]}  Be7 {[%clk 0:03:10]}
10. O-O {[%clk 0:03:09]}  O-O {[%clk 0:03:11]} 11. Nbd2 {[%clk 0:03:07]}  h6 {[%clk 0:03:11]} 12. Nb3 {[%clk 0:03:07]}  Bd7 {[%clk 0:03:11]}
13. Nbd4 {[%clk 0:03:07]}  a6 {[%clk 0:03:12]} 14. Be3 {[%clk 0:03:00]}  Re8 {[%clk 0:03:11]} 15. Rad1 {[%clk 0:03:00]}  Rc8 {[%clk 0:03:10]}
16. Rfe1 {[%clk 0:02:57]}  Bd6 {[%clk 0:03:11]} 17. Nf5 {[%clk 0:02:46]}  Bxf5 {[%clk 0:03:11]} 18. Qxf5 {[%clk 0:02:47]}  Qc7 {[%clk 0:03:12]}
19. Bxh6 {[%clk 0:02:30]}  Rxe1+ {[%clk 0:03:04]} 20. Rxe1 {[%clk 0:02:29]}  Nh7 {[%clk 0:02:32]} 21. Be3 {[%clk 0:01:45]}  Rd8 {[%clk 0:02:27]}
22. Bd4 {[%clk 0:01:44]}  Qd7 {[%clk 0:02:01]} 23. Qxd7 {[%clk 0:01:30]}  Rxd7 {[%clk 0:02:02]} 24. Re8+ {[%clk 0:01:30]}  Nf8 {[%clk 0:02:03]}
25. Ne5 {[%clk 0:01:22]}  Bxe5 {[%clk 0:02:04]} 26. Bxe5 {[%clk 0:01:20]}  f6 {[%clk 0:02:05]} 27. Bd4 {[%clk 0:01:21]}  Kf7 {[%clk 0:02:06]}
28. Rb8 {[%clk 0:01:18]}  Ne6 {[%clk 0:02:03]} 29. Be3 {[%clk 0:01:18]}  Nd8 {[%clk 0:01:51]} 30. Bb6 {[%clk 0:01:05]}  Nc6 {[%clk 0:01:50]}
31. Rh8 {[%clk 0:00:58]}  Ne5 {[%clk 0:01:40]} 32. Bd4 {[%clk 0:00:44]}  Nc4 {[%clk 0:01:36]} 33. b3 {[%clk 0:00:43]}  Nd6 {[%clk 0:01:37]}
34. Kf1 {[%clk 0:00:40]}  Nb5 {[%clk 0:01:36]} 35. Ke2 {[%clk 0:00:40]}  Re7+ {[%clk 0:01:06]} 36. Kd3 {[%clk 0:00:36]}  Nc7 {[%clk 0:01:00]}
37. Be3 {[%clk 0:00:32]}  Ne6 {[%clk 0:00:59]} 38. Rb8 {[%clk 0:00:32]}  Rd7 {[%clk 0:01:00]} 39. a4 {[%clk 0:00:31]}  f5 {[%clk 0:00:58]}
40. g3 {[%clk 0:00:31]}  Rc7 {[%clk 0:00:43]} 41. h4 {[%clk 0:00:29]}  Rd7 {[%clk 0:00:45]} 42. Bd4 {[%clk 0:00:23]}  f4 {[%clk 0:00:42]}
43. Be5 {[%clk 0:00:24]}  fxg3 {[%clk 0:00:43]} 44. fxg3 {[%clk 0:00:25]}  Kg6 {[%clk 0:00:42]} 45. b4 {[%clk 0:00:24]}  Kf5 {[%clk 0:00:44]}
46. Bd4 {[%clk 0:00:24]}  Kg4 {[%clk 0:00:44]} 47. Bf2 {[%clk 0:00:20]}  Rf7 {[%clk 0:00:45]} 48. Ke2 {[%clk 0:00:19]}  Kh3 {[%clk 0:00:34]}
49. Re8 {[%clk 0:00:20]}  Nc7 {[%clk 0:00:33]} 50. Re3 {[%clk 0:00:19]}  Kg4 {[%clk 0:00:33]} 51. Re5 {[%clk 0:00:20]}  b5 {[%clk 0:00:27]}
52. a5 {[%clk 0:00:20]}  Kh3 {[%clk 0:00:22]} 1/2-1/2

[Event "2026 Biel Blitz Open"]
[Site "Biel, CH"]
[Date "2026.07.19"]
[Round "4"]
[White "Delion, Helge"]
[Black "Aryan Mehta"]
[Result "0-1"]
[Board "32"]
[TimeControl "180+2"]
[WhiteFideId "12914568"]
[BlackFideId "33329664"]
[WhiteElo "1911"]
[BlackElo "2061"]
[WhiteClock "0:00:04"]
[BlackClock "0:00:10"]
[Variant "Standard"]
[EndDate "2026.07.19"]
[EndTime "12:50:43"]

1. e4 {[%clk 0:03:03]}  e5 {[%clk 0:03:03]} 2. f4 {[%clk 0:03:04]}  exf4 {[%clk 0:03:03]} 3. Bc4 {[%clk 0:03:05]}  Qh4+ {[%clk 0:03:03]}
4. Kf1 {[%clk 0:03:06]}  Nf6 {[%clk 0:02:55]} 5. Nf3 {[%clk 0:03:06]}  Qh5 {[%clk 0:02:51]} 6. Nc3 {[%clk 0:03:06]}  Bb4 {[%clk 0:02:47]}
7. e5 {[%clk 0:02:59]}  Ng4 {[%clk 0:02:42]} 8. d4 {[%clk 0:02:38]}  Ne3+ {[%clk 0:02:41]} 9. Bxe3 {[%clk 0:02:39]}  fxe3 {[%clk 0:02:42]}
10. Qe2 {[%clk 0:02:34]}  Bxc3 {[%clk 0:02:36]} 11. bxc3 {[%clk 0:02:35]}  O-O {[%clk 0:02:33]} 12. Qxe3 {[%clk 0:02:30]}  d6 {[%clk 0:02:24]}
13. exd6 {[%clk 0:01:37]}  cxd6 {[%clk 0:02:24]} 14. Qg5 {[%clk 0:01:38]}  Qxg5 {[%clk 0:02:12]} 15. Nxg5 {[%clk 0:01:39]}  h6 {[%clk 0:02:11]}
16. Nf3 {[%clk 0:01:25]}  Nc6 {[%clk 0:02:12]} 17. Kf2 {[%clk 0:01:23]}  Bf5 {[%clk 0:02:05]} 18. Bb3 {[%clk 0:01:17]}  Na5 {[%clk 0:01:58]}
19. Rhe1 {[%clk 0:01:16]}  Rfe8 {[%clk 0:01:56]} 20. Rxe8+ {[%clk 0:01:09]}  Rxe8 {[%clk 0:01:57]} 21. Re1 {[%clk 0:01:11]}  Rxe1 {[%clk 0:01:45]}
22. Kxe1 {[%clk 0:01:11]}  Nxb3 {[%clk 0:01:46]} 23. cxb3 {[%clk 0:01:12]}  Kf8 {[%clk 0:01:43]} 24. Kd2 {[%clk 0:01:06]}  Ke7 {[%clk 0:01:43]}
25. c4 {[%clk 0:01:03]}  g5 {[%clk 0:01:41]} 26. Ke3 {[%clk 0:00:57]}  Bb1 {[%clk 0:01:36]} 27. a3 {[%clk 0:00:58]}  f5 {[%clk 0:01:23]}
28. g3 {[%clk 0:00:58]}  Ke6 {[%clk 0:01:05]} 29. d5+ {[%clk 0:00:45]}  Kf6 {[%clk 0:01:04]} 30. Kd4 {[%clk 0:00:41]}  Be4 {[%clk 0:00:48]}
31. Nd2 {[%clk 0:00:42]}  Bg2 {[%clk 0:00:46]} 32. b4 {[%clk 0:00:39]}  f4 {[%clk 0:00:34]} 33. gxf4 {[%clk 0:00:38]}  gxf4 {[%clk 0:00:35]}
34. c5 {[%clk 0:00:39]}  dxc5+ {[%clk 0:00:29]} 35. bxc5 {[%clk 0:00:39]}  f3 {[%clk 0:00:31]} 36. Ke3 {[%clk 0:00:38]}  f2 {[%clk 0:00:32]}
37. Kxf2 {[%clk 0:00:36]}  Bxd5 {[%clk 0:00:33]} 38. Ke3 {[%clk 0:00:35]}  Ke5 {[%clk 0:00:34]} 39. Nb1 {[%clk 0:00:32]}  Bg2 {[%clk 0:00:20]}
40. Nc3 {[%clk 0:00:31]}  Bc6 {[%clk 0:00:21]} 41. Ne2 {[%clk 0:00:27]}  Kd5 {[%clk 0:00:21]} 42. Kf4 {[%clk 0:00:18]}  Kxc5 {[%clk 0:00:19]}
43. Kf5 {[%clk 0:00:18]}  h5 {[%clk 0:00:16]} 44. Kg5 {[%clk 0:00:18]}  Bf3 {[%clk 0:00:17]} 45. Ng3 {[%clk 0:00:16]}  b5 {[%clk 0:00:17]}
46. Nxh5 {[%clk 0:00:15]}  a5 {[%clk 0:00:13]} 47. Nf4 {[%clk 0:00:12]}  b4 {[%clk 0:00:15]} 48. axb4+ {[%clk 0:00:13]}  Kxb4 {[%clk 0:00:11]}
49. Nd3+ {[%clk 0:00:11]}  Kc3 {[%clk 0:00:12]} 50. Nc5 {[%clk 0:00:12]}  Kc4 {[%clk 0:00:12]} 51. Na4 {[%clk 0:00:10]}  Be2 {[%clk 0:00:09]}
52. h4 {[%clk 0:00:10]}  Kb4 {[%clk 0:00:10]} 53. Nb6 {[%clk 0:00:01]}  Kc5 {[%clk 0:00:06]} 54. Na4+ {[%clk 0:00:04]}  Kb4 {[%clk 0:00:07]}
55. Nb6 {[%clk 0:00:05]}  Kb5 {[%clk 0:00:09]} 56. Nd5 {[%clk 0:00:04]}  Bf3 {[%clk 0:00:10]} 57. Nc3+ {[%clk 0:00:04]}  Kb4 {[%clk 0:00:10]}
58. Na2+ {[%clk 0:00:00]}  Kb3 {[%clk 0:00:10]} 59. Kf4 {[%clk 0:00:00]}  Bd1 {[%clk 0:00:10]} 60. Nc1+ {[%clk 0:00:00]}  Kc2 {[%clk 0:00:10]}
61. Na2 {[%clk 0:00:00]} 0-1